fUSD/lending_fUSD_20260606
["ID","MTS","AMOUNT","RATE_DAILY","PERIOD"]
[424236422,1780678264000,-300.0,0.00035045,2]
[424236415,1780678264000,-200.0,0.00035,120]
[424236420,1780678264000,-438.20537027,0.00035045,2]
[424236421,1780678264000,-300.0,0.00035045,2]
[424236416,1780678264000,-913.0,0.00035023,3]
[424236417,1780678264000,-153.68429549,0.00035029,2]
[424236426,1780678264000,-300.0,0.00035045,2]
[424236419,1780678264000,-7166.5335,0.00035033,2]
[424236425,1780678264000,-3206.51250246,0.00035045,2]
[424236443,1780678264000,-866.62523856,0.00035045,2]
[424236430,1780678264000,-300.0,0.00035045,2]
[424236431,1780678264000,-302.57479324,0.00035045,2]
[424236437,1780678264000,-300.0,0.00035045,2]
[424236429,1780678264000,-727.95528898,0.00035045,2]
[424236439,1780678264000,-344.84564358,0.00035045,2]
[424236438,1780678264000,-389.58268941,0.00035045,2]
[424236440,1780678264000,-528.25355298,0.00035045,2]
[424236432,1780678264000,-300.36336253,0.00035045,2]
[424236433,1780678264000,-301.35684721,0.00035045,2]
[424236435,1780678264000,-300.0,0.00035045,2]
[424236434,1780678264000,-300.0,0.00035045,2]
[424236436,1780678264000,-300.0,0.00035045,2]
[424236441,1780678264000,-300.0,0.00035045,2]
[424236414,1780678264000,-432.95,0.00035,5]
[424236428,1780678264000,-535.40148659,0.00035045,2]
[424236410,1780678264000,-1000.0,0.00035,120]
[424236395,1780678264000,-278.51312383,0.00035,120]
[424236408,1780678264000,-19458.1633244,0.00035,7]
[424236386,1780678264000,-174.3460345,0.00035,120]
[424236444,1780678264000,-951.46597211,0.00035045,2]
[424236387,1780678264000,-1411.14452718,0.00035,120]
[424236388,1780678264000,-433.47194799,0.00035,120]
[424236384,1780678264000,-306.50544473,0.00035,120]
[424236383,1780678264000,-602.88147334,0.00035,120]
[424236382,1780678264000,-1918.20776524,0.00035,120]
[424236381,1780678264000,-565.72421072,0.00035,120]
[424236389,1780678264000,-1910.38886028,0.00035,120]
[424236390,1780678264000,-859.49474078,0.00035,120]
[424236394,1780678264000,-240.54220588,0.00035,120]
[424236392,1780678264000,-1939.11156993,0.00035,120]
[424236391,1780678264000,-441.83431517,0.00035,120]
[424236396,1780678264000,-704.16,0.00035,14]
[424236397,1780678264000,-356.36293984,0.00035,120]
[424236398,1780678264000,-800.0,0.00035,7]
[424236400,1780678264000,-1000.0,0.00035,60]
[424236399,1780678264000,-333.74832914,0.00035,30]
[424236393,1780678264000,-323.74083089,0.00035,120]
[424236404,1780678264000,-227.85863865,0.00035,120]
[424236409,1780678264000,-2862.0,0.00035,2]
[424236402,1780678264000,-38204.03125658,0.00035,4]
[424236412,1780678264000,-432.95,0.00035,2]
[424236406,1780678264000,-526.0,0.00035,5]
[424236411,1780678264000,-247.27711029,0.00035,60]
[424236401,1780678264000,-43068.71701735,0.00035,5]
[424236405,1780678264000,-2798.94822387,0.00035,10]
[424236403,1780678264000,-2917.07367689,0.00035,120]
[424236407,1780678264000,-509.17631543,0.00035,120]
[424236413,1780678264000,-432.95,0.00035,7]
[424236385,1780678264000,-890.90734959,0.00035,120]
[424236445,1780678264000,-1801.88721781,0.00035045,2]
[424236448,1780678264000,-300.0,0.00035045,2]
[424236488,1780678264000,-300.0,0.00035045,2]
[424236489,1780678264000,-300.0,0.00035045,2]
[424236490,1780678264000,-300.0,0.00035045,2]
[424236481,1780678264000,-300.0,0.00035045,2]
[424236492,1780678264000,-300.0,0.00035045,2]
[424236486,1780678264000,-300.0,0.00035045,2]
[424236487,1780678264000,-606.01943079,0.00035045,2]
[424236491,1780678264000,-3206.51250246,0.00035045,2]
[424236483,1780678264000,-300.0,0.00035045,2]
[424236493,1780678264000,-1069.74260505,0.00035045,2]
[424236482,1780678264000,-493.96494702,0.00035045,2]
[424236484,1780678264000,-300.0,0.00035045,2]
[424236485,1780678264000,-300.0,0.00035045,2]
[424236495,1780678264000,-727.95528898,0.00035045,2]
[424236494,1780678264000,-535.40148659,0.00035045,2]
[424236499,1780678264000,-300.36336253,0.00035045,2]
[424236500,1780678264000,-301.35684721,0.00035045,2]
[424236497,1780678264000,-302.57479324,0.00035045,2]
[424236501,1780678264000,-300.0,0.00035045,2]
[424236496,1780678264000,-300.0,0.00035045,2]
[424236498,1780678264000,-300.0,0.00035045,2]
[424236505,1780678264000,-300.0,0.00035045,2]
[424236506,1780678264000,-300.0,0.00035045,2]
[424236502,1780678264000,-300.0,0.00035045,2]
[424236507,1780678264000,-344.84564358,0.00035045,2]
[424236504,1780678264000,-300.0,0.00035045,2]
[424236503,1780678264000,-300.0,0.00035045,2]
[424236446,1780678264000,-300.0,0.00035045,2]
[424236509,1780678264000,-599.23664749,0.00035045,2]
[424236472,1780678264000,-300.0,0.00035045,2]
[424236468,1780678264000,-300.0,0.00035045,2]
[424236508,1780678264000,-528.25355298,0.00035045,2]
[424236479,1780678264000,-300.0,0.00035045,2]
[424236480,1780678264000,-460.86011577,0.00035045,2]
[424236449,1780678264000,-300.0,0.00035045,2]
[424236442,1780678264000,-300.0,0.00035045,2]
[424236447,1780678264000,-310.41093008,0.00035045,2]
[424236451,1780678264000,-300.0,0.00035045,2]
[424236453,1780678264000,-300.0,0.00035045,2]
[424236452,1780678264000,-300.0,0.00035045,2]
[424236454,1780678264000,-595.52105001,0.00035045,2]
[424236455,1780678264000,-300.0,0.00035045,2]
[424236462,1780678264000,-300.0,0.00035045,2]
[424236464,1780678264000,-300.0,0.00035045,2]
[424236456,1780678264000,-300.0,0.00035045,2]
[424236457,1780678264000,-512.60852236,0.00035045,2]
[424236466,1780678264000,-485.39259751,0.00035045,2]
[424236465,1780678264000,-300.0,0.00035045,2]
[424236450,1780678264000,-1343.13549955,0.00035045,2]
[424236458,1780678264000,-300.0,0.00035045,2]
[424236475,1780678264000,-300.0,0.00035045,2]
[424236478,1780678264000,-300.0,0.00035045,2]
[424236474,1780678264000,-300.0,0.00035045,2]
[424236473,1780678264000,-1097.74908549,0.00035045,2]
[424236463,1780678264000,-300.0,0.00035045,2]
[424236471,1780678264000,-300.0,0.00035045,2]
[424236476,1780678264000,-300.0,0.00035045,2]
[424236470,1780678264000,-300.0,0.00035045,2]
[424236469,1780678264000,-300.0,0.00035045,2]
[424236467,1780678264000,-300.0,0.00035045,2]
[424236460,1780678264000,-300.0,0.00035045,2]
[424236459,1780678264000,-582.33663571,0.00035045,2]
[424236461,1780678264000,-453.07819494,0.00035045,2]
[424236477,1780678264000,-300.0,0.00035045,2]
[424236550,1780678265000,-300.0,0.00035045,2]
[424236554,1780678265000,-300.0,0.00035045,2]
[424236552,1780678265000,-300.0,0.00035045,2]
[424236547,1780678265000,-300.0,0.00035045,2]
[424236549,1780678265000,-300.0,0.00035045,2]
[424236541,1780678265000,-300.0,0.00035045,2]
[424236546,1780678265000,-300.0,0.00035045,2]
[424236545,1780678265000,-1097.74908549,0.00035045,2]
[424236555,1780678265000,-493.96494702,0.00035045,2]
[424236539,1780678265000,-300.0,0.00035045,2]
[424236533,1780678265000,-300.0,0.00035045,2]
[424236556,1780678265000,-300.0,0.00035045,2]
[424236557,1780678265000,-300.0,0.00035045,2]
[424236560,1780678265000,-606.01943079,0.00035045,2]
[424236551,1780678265000,-300.0,0.00035045,2]
[424236553,1780678265000,-300.0,0.00035045,2]
[424236558,1780678265000,-300.0,0.00035045,2]
[424236563,1780678265000,-300.0,0.00035045,2]
[424236559,1780678265000,-300.0,0.00035045,2]
[424236564,1780678265000,-3206.51250246,0.00035045,2]
[424236561,1780678265000,-300.0,0.00035045,2]
[424236562,1780678265000,-300.0,0.00035045,2]
[424236565,1780678265000,-300.0,0.00035045,2]
[424236566,1780678265000,-1069.74260505,0.00035045,2]
[424236567,1780678265000,-535.40148659,0.00035045,2]
[424236569,1780678265000,-300.0,0.00035045,2]
[424236542,1780678265000,-300.0,0.00035045,2]
[424236548,1780678265000,-300.0,0.00035045,2]
[424236544,1780678265000,-300.0,0.00035045,2]
[424236531,1780678265000,-453.07819494,0.00035045,2]
[424236538,1780678265000,-300.0,0.00035045,2]
[424236511,1780678265000,-300.0,0.00035045,2]
[424236510,1780678265000,-300.0,0.00035045,2]
[424236512,1780678265000,-866.62523856,0.00035045,2]
[424236513,1780678265000,-951.46597211,0.00035045,2]
[424236514,1780678265000,-1801.88721781,0.00035045,2]
[424236515,1780678265000,-300.0,0.00035045,2]
[424236518,1780678265000,-300.0,0.00035045,2]
[424236516,1780678265000,-300.0,0.00035045,2]
[424236519,1780678265000,-300.0,0.00035045,2]
[424236517,1780678265000,-310.41093008,0.00035045,2]
[424236520,1780678265000,-1343.13549955,0.00035045,2]
[424236522,1780678265000,-300.0,0.00035045,2]
[424236523,1780678265000,-300.0,0.00035045,2]
[424236543,1780678265000,-300.0,0.00035045,2]
[424236528,1780678265000,-300.0,0.00035045,2]
[424236529,1780678265000,-582.33663571,0.00035045,2]
[424236530,1780678265000,-300.0,0.00035045,2]
[424236524,1780678265000,-595.52105001,0.00035045,2]
[424236527,1780678265000,-512.60852236,0.00035045,2]
[424236526,1780678265000,-300.0,0.00035045,2]
[424236525,1780678265000,-300.0,0.00035045,2]
[424236532,1780678265000,-300.0,0.00035045,2]
[424236535,1780678265000,-300.0,0.00035045,2]
[424236536,1780678265000,-300.0,0.00035045,2]
[424236534,1780678265000,-300.0,0.00035045,2]
[424236540,1780678265000,-300.0,0.00035045,2]
[424236568,1780678265000,-727.95528898,0.00035045,2]
[424236537,1780678265000,-485.39259751,0.00035045,2]
[424236521,1780678265000,-300.0,0.00035045,2]
[424236570,1780678265000,-302.57479324,0.00035045,2]
[424236601,1780678265000,-300.0,0.00035045,2]
[424236571,1780678265000,-300.0,0.00035045,2]
[424236604,1780678265000,-582.33663571,0.00035045,2]
[424236600,1780678265000,-300.0,0.00035045,2]
[424236603,1780678265000,-300.0,0.00035045,2]
[424236609,1780678265000,-300.0,0.00035045,2]
[424236611,1780678265000,-300.0,0.00035045,2]
[424236610,1780678265000,-300.0,0.00035045,2]
[424236614,1780678265000,-300.0,0.00035045,2]
[424236612,1780678265000,-300.0,0.00035045,2]
[424236613,1780678265000,-485.39259751,0.00035045,2]
[424236617,1780678265000,-300.0,0.00035045,2]
[424236619,1780678265000,-300.0,0.00035045,2]
[424236618,1780678265000,-300.0,0.00035045,2]
[424236620,1780678265000,-300.0,0.00035045,2]
[424236599,1780678265000,-595.52105001,0.00035045,2]
[424236616,1780678265000,-560.37662927,0.00035045,2]
[424236615,1780678265000,-300.0,0.00035045,2]
[424236623,1780678265000,-300.0,0.00035045,2]
[424236631,1780678265000,-300.0,0.00035045,2]
[424236633,1780678265000,-300.0,0.00035045,2]
[424236624,1780678265000,-300.0,0.00035045,2]
[424236629,1780678265000,-300.0,0.00035045,2]
[424236632,1780678265000,-300.0,0.00035045,2]
[424236630,1780678265000,-300.0,0.00035045,2]
[424236622,1780678265000,-300.0,0.00035045,2]
[424236625,1780678265000,-300.0,0.00035045,2]
[424236627,1780678265000,-300.0,0.00035045,2]
[424236628,1780678265000,-300.0,0.00035045,2]
[424236572,1780678265000,-300.36336253,0.00035045,2]
[424236621,1780678265000,-1097.74908549,0.00035045,2]
[424236602,1780678265000,-512.60852236,0.00035045,2]
[424236626,1780678265000,-300.0,0.00035045,2]
[424236598,1780678265000,-300.0,0.00035045,2]
[424236597,1780678265000,-300.0,0.00035045,2]
[424236575,1780678265000,-300.0,0.00035045,2]
[424236576,1780678265000,-300.0,0.00035045,2]
[424236578,1780678265000,-300.0,0.00035045,2]
[424236574,1780678265000,-300.0,0.00035045,2]
[424236579,1780678265000,-300.0,0.00035045,2]
[424236577,1780678265000,-300.0,0.00035045,2]
[424236581,1780678265000,-344.84564358,0.00035045,2]
[424236573,1780678265000,-301.35684721,0.00035045,2]
[424236582,1780678265000,-528.25355298,0.00035045,2]
[424236592,1780678265000,-310.41093008,0.00035045,2]
[424236594,1780678265000,-300.0,0.00035045,2]
[424236591,1780678265000,-300.0,0.00035045,2]
[424236586,1780678265000,-300.0,0.00035045,2]
[424236580,1780678265000,-300.0,0.00035045,2]
[424236593,1780678265000,-300.0,0.00035045,2]
[424236587,1780678265000,-866.62523856,0.00035045,2]
[424236595,1780678265000,-1343.13549955,0.00035045,2]
[424236607,1780678265000,-300.0,0.00035045,2]
[424236606,1780678265000,-453.07819494,0.00035045,2]
[424236596,1780678265000,-300.0,0.00035045,2]
[424236608,1780678265000,-300.0,0.00035045,2]
[424236589,1780678265000,-1801.88721781,0.00035045,2]
[424236584,1780678265000,-300.0,0.00035045,2]
[424236588,1780678265000,-951.46597211,0.00035045,2]
[424236583,1780678265000,-300.0,0.00035045,2]
[424236605,1780678265000,-300.0,0.00035045,2]
[424236590,1780678265000,-300.0,0.00035045,2]
[424236585,1780678265000,-300.0,0.00035045,2]
[424236683,1780678266000,-512.60852236,0.00035045,2]
[424236670,1780678266000,-300.0,0.00035045,2]
[424236661,1780678266000,-344.84564358,0.00035045,2]
[424236666,1780678266000,-300.0,0.00035045,2]
[424236667,1780678266000,-866.62523856,0.00035045,2]
[424236665,1780678266000,-300.0,0.00035045,2]
[424236664,1780678266000,-467.78595318,0.00035045,2]
[424236663,1780678266000,-300.0,0.00035045,2]
[424236673,1780678266000,-310.41093008,0.00035045,2]
[424236668,1780678266000,-951.46597211,0.00035045,2]
[424236662,1780678266000,-528.25355298,0.00035045,2]
[424236680,1780678266000,-595.52105001,0.00035045,2]
[424236678,1780678266000,-300.0,0.00035045,2]
[424236676,1780678266000,-1343.13549955,0.00035045,2]
[424236681,1780678266000,-300.0,0.00035045,2]
[424236679,1780678266000,-300.0,0.00035045,2]
[424236675,1780678266000,-300.0,0.00035045,2]
[424236682,1780678266000,-300.0,0.00035045,2]
[424236677,1780678266000,-300.0,0.00035045,2]
[424236684,1780678266000,-300.0,0.00035045,2]
[424236685,1780678266000,-582.33663571,0.00035045,2]
[424236686,1780678266000,-300.0,0.00035045,2]
[424236672,1780678266000,-300.0,0.00035045,2]
[424236697,1780678266000,-3553.0,0.00035048,2]
[424236674,1780678266000,-300.0,0.00035045,2]
[424236669,1780678266000,-1801.88721781,0.00035045,2]
[424236646,1780678266000,-535.40148659,0.00035045,2]
[424236660,1780678266000,-300.0,0.00035045,2]
[424236696,1780678266000,-300.0,0.00035045,2]
[424236634,1780678266000,-493.96494702,0.00035045,2]
[424236636,1780678266000,-300.0,0.00035045,2]
[424236637,1780678266000,-300.0,0.00035045,2]
[424236638,1780678266000,-300.0,0.00035045,2]
[424236639,1780678266000,-606.01943079,0.00035045,2]
[424236640,1780678266000,-300.0,0.00035045,2]
[424236641,1780678266000,-300.0,0.00035045,2]
[424236645,1780678266000,-1069.74260505,0.00035045,2]
[424236635,1780678266000,-300.0,0.00035045,2]
[424236644,1780678266000,-300.0,0.00035045,2]
[424236643,1780678266000,-3206.51250246,0.00035045,2]
[424236642,1780678266000,-300.0,0.00035045,2]
[424236647,1780678266000,-727.95528898,0.00035045,2]
[424236658,1780678266000,-300.0,0.00035045,2]
[424236651,1780678266000,-300.36336253,0.00035045,2]
[424236650,1780678266000,-300.0,0.00035045,2]
[424236652,1780678266000,-301.35684721,0.00035045,2]
[424236648,1780678266000,-300.0,0.00035045,2]
[424236653,1780678266000,-300.0,0.00035045,2]
[424236656,1780678266000,-300.0,0.00035045,2]
[424236649,1780678266000,-302.57479324,0.00035045,2]
[424236655,1780678266000,-300.0,0.00035045,2]
[424236657,1780678266000,-300.0,0.00035045,2]
[424236654,1780678266000,-300.0,0.00035045,2]
[424236671,1780678266000,-300.0,0.00035045,2]
[424236695,1780678266000,-300.0,0.00035045,2]
[424236659,1780678266000,-300.0,0.00035045,2]
[424236691,1780678266000,-300.0,0.00035045,2]
[424236713,1780678266000,-163.5704503,0.00035054,60]
[424236716,1780678266000,-500.0,0.00035054,60]
[424236722,1780678266000,-150.0,0.00035106,30]
[424236724,1780678266000,-150.0,0.00035106,30]
[424236725,1780678266000,-255.83575464,0.00035106,30]
[424236723,1780678266000,-150.0,0.00035106,30]
[424236727,1780678266000,-150.0,0.00035106,30]
[424236726,1780678266000,-150.0,0.00035106,30]
[424236728,1780678266000,-150.0,0.00035106,30]
[424236729,1780678266000,-150.0,0.00035106,30]
[424236733,1780678266000,-500.0,0.00035106,2]
[424236736,1780678266000,-500.0,0.00035106,2]
[424236732,1780678266000,-500.0,0.00035106,2]
[424236735,1780678266000,-500.0,0.00035106,2]
[424236730,1780678266000,-168.37532272,0.00035106,30]
[424236731,1780678266000,-500.0,0.00035106,2]
[424236734,1780678266000,-500.0,0.00035106,2]
[424236738,1780678266000,-500.0,0.00035106,2]
[424236737,1780678266000,-500.0,0.00035106,2]
[424236739,1780678266000,-500.0,0.00035106,2]
[424236740,1780678266000,-529.52,0.00035106,2]
[424236742,1780678266000,-500.0,0.00035106,2]
[424236745,1780678266000,-500.0,0.00035106,2]
[424236741,1780678266000,-500.0,0.00035106,2]
[424236688,1780678266000,-300.0,0.00035045,2]
[424236719,1780678266000,-500.0,0.00035054,60]
[424236744,1780678266000,-511.81,0.00035106,2]
[424236743,1780678266000,-500.0,0.00035106,2]
[424236717,1780678266000,-890.4991091,0.00035054,60]
[424236689,1780678266000,-300.0,0.00035045,2]
[424236718,1780678266000,-500.0,0.00035054,60]
[424236694,1780678266000,-485.39259751,0.00035045,2]
[424236692,1780678266000,-300.0,0.00035045,2]
[424236690,1780678266000,-300.0,0.00035045,2]
[424236693,1780678266000,-300.0,0.00035045,2]
[424236699,1780678266000,-1273.0,0.00035048,2]
[424236700,1780678266000,-382.0,0.00035048,2]
[424236698,1780678266000,-1357.0,0.00035048,2]
[424236708,1780678266000,-500.0,0.00035054,60]
[424236705,1780678266000,-730.559974,0.00035054,60]
[424236704,1780678266000,-928.2410471,0.00035054,60]
[424236687,1780678266000,-453.07819494,0.00035045,2]
[424236709,1780678266000,-500.0,0.00035054,60]
[424236715,1780678266000,-500.0,0.00035054,60]
[424236703,1780678266000,-976.7556371,0.00035054,60]
[424236712,1780678266000,-354.258427,0.00035054,60]
[424236721,1780678266000,-4854.25,0.00035056,7]
[424236720,1780678266000,-791.896713,0.00035054,60]
[424236714,1780678266000,-554.4033122,0.00035054,60]
[424236710,1780678266000,-780.8132809,0.00035054,60]
[424236707,1780678266000,-500.0,0.00035054,60]
[424236701,1780678266000,-419.0,0.00035048,2]
[424236702,1780678266000,-933.0,0.00035048,2]
[424236706,1780678266000,-152.4350226,0.00035054,60]
[424236711,1780678266000,-892.8568119,0.00035054,60]
[424236770,1780678267000,-1316.58435026,0.00035327,2]
[424236784,1780678267000,-150.0,0.00035372,30]
[424236774,1780678267000,-3204.91678496,0.00035327,2]
[424236772,1780678267000,-1232.09490465,0.00035327,2]
[424236775,1780678267000,-1638.69574914,0.00035327,2]
[424236771,1780678267000,-2781.23262715,0.00035327,2]
[424236773,1780678267000,-2770.06023708,0.00035327,2]
[424236778,1780678267000,-1350.26798505,0.00035327,2]
[424236769,1780678267000,-150.0,0.00035316,30]
[424236785,1780678267000,-150.0,0.000354,30]
[424236780,1780678267000,-1287.15649916,0.00035327,2]
[424236786,1780678267000,-318.07,0.000354,14]
[424236781,1780678267000,-1223.92857322,0.00035328,2]
[424236779,1780678267000,-1436.3072705,0.00035327,2]
[424236782,1780678267000,-150.0,0.00035358,30]
[424236788,1780678267000,-7166.5335,0.00035407,2]
[424236787,1780678267000,-150.0,0.00035406,30]
[424236790,1780678267000,-3960.0,0.00035408,30]
[424236777,1780678267000,-1430.34612388,0.00035327,2]
[424236789,1780678267000,-741.0,0.00035408,30]
[424236783,1780678267000,-1592.0,0.00035359,11]
[424236776,1780678267000,-2535.37566218,0.00035327,2]
[424236756,1780678267000,-150.0,0.00035274,30]
[424236768,1780678267000,-1380.7936835,0.00035313,2]
[424236795,1780678267000,-200.0,0.00035445,2]
[424236746,1780678267000,-841.2,0.00035106,2]
[424236749,1780678267000,-7166.5335,0.00035158,2]
[424236748,1780678267000,-623.0,0.00035152,16]
[424236754,1780678267000,-150.0,0.00035232,30]
[424236747,1780678267000,-150.0,0.00035148,30]
[424236753,1780678267000,-300.0,0.00035206,37]
[424236750,1780678267000,-150.0,0.0003519,30]
[424236755,1780678267000,-233.048,0.0003525,14]
[424236752,1780678267000,-150.0,0.00035206,30]
[424236751,1780678267000,-150.0,0.00035195,30]
[424236758,1780678267000,-350.0,0.00035282,2]
[424236757,1780678267000,-7166.5335,0.00035282,2]
[424236759,1780678267000,-350.0,0.00035282,2]
[424236761,1780678267000,-150.0,0.00035284,30]
[424236766,1780678267000,-1412.28688489,0.00035312,120]
[424236762,1780678267000,-150.0,0.00035292,30]
[424236760,1780678267000,-333.0,0.00035282,2]
[424236764,1780678267000,-150.0,0.00035306,30]
[424236765,1780678267000,-22291.99451805,0.00035312,120]
[424236763,1780678267000,-1335.0,0.00035306,2]
[424236767,1780678267000,-1414.24958236,0.00035313,2]
[424236793,1780678267000,-570.0,0.00035408,30]
[424236809,1780678267000,-200.0,0.00035445,2]
[424236791,1780678267000,-1116.0,0.00035408,30]
[424236824,1780678267000,-200.0,0.00035445,2]
[424236822,1780678267000,-200.0,0.00035445,2]
[424236823,1780678267000,-200.0,0.00035445,2]
[424236818,1780678267000,-200.0,0.00035445,2]
[424236819,1780678267000,-200.0,0.00035445,2]
[424236833,1780678267000,-200.0,0.00035445,2]
[424236832,1780678267000,-200.0,0.00035445,2]
[424236829,1780678267000,-200.0,0.00035445,2]
[424236826,1780678267000,-200.0,0.00035445,2]
[424236792,1780678267000,-2358.0,0.00035408,30]
[424236831,1780678267000,-200.0,0.00035445,2]
[424236828,1780678267000,-200.0,0.00035445,2]
[424236830,1780678267000,-200.0,0.00035445,2]
[424236827,1780678267000,-200.0,0.00035445,2]
[424236836,1780678267000,-200.0,0.00035445,2]
[424236835,1780678267000,-200.0,0.00035445,2]
[424236837,1780678267000,-200.0,0.00035445,2]
[424236838,1780678267000,-200.0,0.00035445,2]
[424236839,1780678267000,-200.0,0.00035445,2]
[424236840,1780678267000,-200.0,0.00035445,2]
[424236841,1780678267000,-200.0,0.00035445,2]
[424236825,1780678267000,-200.0,0.00035445,2]
[424236820,1780678267000,-200.0,0.00035445,2]
[424236834,1780678267000,-200.0,0.00035445,2]
[424236817,1780678267000,-200.0,0.00035445,2]
[424236821,1780678267000,-200.0,0.00035445,2]
[424236796,1780678267000,-200.0,0.00035445,2]
[424236794,1780678267000,-150.0,0.00035442,30]
[424236804,1780678267000,-200.0,0.00035445,2]
[424236806,1780678267000,-200.0,0.00035445,2]
[424236805,1780678267000,-200.0,0.00035445,2]
[424236799,1780678267000,-200.0,0.00035445,2]
[424236798,1780678267000,-200.0,0.00035445,2]
[424236797,1780678267000,-200.0,0.00035445,2]
[424236801,1780678267000,-200.0,0.00035445,2]
[424236802,1780678267000,-200.0,0.00035445,2]
[424236803,1780678267000,-200.0,0.00035445,2]
[424236807,1780678267000,-200.0,0.00035445,2]
[424236816,1780678267000,-200.0,0.00035445,2]
[424236811,1780678267000,-200.0,0.00035445,2]
[424236808,1780678267000,-200.0,0.00035445,2]
[424236814,1780678267000,-200.0,0.00035445,2]
[424236812,1780678267000,-169.0,0.00035445,2]
[424236813,1780678267000,-200.0,0.00035445,2]
[424236810,1780678267000,-200.0,0.00035445,2]
[424236800,1780678267000,-200.0,0.00035445,2]
[424236815,1780678267000,-200.0,0.00035445,2]
[424236858,1780678268000,-1045.0,0.00035457,30]
[424236855,1780678268000,-541.0,0.00035445,2]
[424236856,1780678268000,-200.0,0.00035445,2]
[424236854,1780678268000,-500.0,0.00035445,2]
[424236861,1780678268000,-208.84,0.0003546,69]
[424236860,1780678268000,-4124.0,0.00035457,30]
[424236862,1780678268000,-150.0,0.00035461,30]
[424236863,1780678268000,-934.0,0.00035462,30]
[424236857,1780678268000,-160.0,0.00035445,2]
[424236859,1780678268000,-630.0,0.00035457,30]
[424236852,1780678268000,-500.0,0.00035445,2]
[424236842,1780678268000,-200.0,0.00035445,2]
[424236851,1780678268000,-500.0,0.00035445,2]
[424236850,1780678268000,-500.0,0.00035445,2]
[424236849,1780678268000,-500.0,0.00035445,2]
[424236845,1780678268000,-200.0,0.00035445,2]
[424236848,1780678268000,-200.0,0.00035445,2]
[424236847,1780678268000,-200.0,0.00035445,2]
[424236844,1780678268000,-200.0,0.00035445,2]
[424236846,1780678268000,-200.0,0.00035445,2]
[424236843,1780678268000,-200.0,0.00035445,2]
[424236865,1780678268000,-680.0,0.00035462,30]
[424236853,1780678268000,-500.0,0.00035445,2]
[424236864,1780678268000,-1324.0,0.00035462,30]
[424236890,1780678268000,-150.0,0.0003561,30]
[424236866,1780678268000,-3251.0,0.00035462,30]
[424236867,1780678268000,-3253.0,0.00035462,30]
[424236886,1780678268000,-2139.51625837,0.00035589,120]
[424236885,1780678268000,-1409.5,0.00035589,120]
[424236887,1780678268000,-150.0,0.00035594,30]
[424236889,1780678268000,-151.0,0.00035607,14]
[424236891,1780678268000,-5277.58388557,0.0003561,2]
[424236888,1780678268000,-150.0,0.00035606,30]
[424236884,1780678268000,-1409.5,0.00035589,120]
[424236883,1780678268000,-150.0,0.00035568,30]
[424236882,1780678268000,-150.0,0.0003555,30]
[424236879,1780678268000,-904.48,0.00035533,7]
[424236881,1780678268000,-151.0,0.00035548,2]
[424236880,1780678268000,-151.0,0.00035548,2]
[424236868,1780678268000,-11578.43,0.00035475,60]
[424236869,1780678268000,-150.0,0.00035478,30]
[424236877,1780678268000,-151.0,0.00035533,2]
[424236873,1780678268000,-2000.0,0.000355,7]